fUST/lending_fUST_20250627
["ID","MTS","AMOUNT","RATE_DAILY","PERIOD"]
[368115976,1751028644543,-187.19,0.00019452,2]
[368115977,1751028644552,-460.0,0.00019452,2]
[368115978,1751028644561,-440.0,0.00019452,2]
[368115979,1751028644570,-460.0,0.00019452,2]
[368115980,1751028644580,-460.0,0.00019452,2]
[368115981,1751028644590,-460.0,0.00019452,2]
[368115982,1751028644599,-460.0,0.00019452,2]
[368115983,1751028644608,-460.0,0.00019452,2]
[368115984,1751028644618,-460.0,0.00019452,2]
[368115985,1751028644627,-465.56153685,0.00019452,2]
[368115986,1751028644636,-463.76,0.00019452,2]
[368115987,1751028644645,-460.0,0.00019452,2]
[368115988,1751028644655,-460.0,0.00019452,2]
[368115989,1751028644664,-460.0,0.00019452,2]
[368115990,1751028644673,-460.0,0.00019452,2]
[368115991,1751028644682,-460.0,0.00019452,2]
[368115992,1751028644692,-602.63,0.00019452,2]
[368115993,1751028644702,-460.0,0.00019452,2]
[368115994,1751028644711,-460.0,0.00019452,2]
[368115995,1751028644721,-460.0,0.00019452,2]
[368115996,1751028644730,-460.0,0.00019452,2]
[368115997,1751028644740,-460.0,0.00019452,2]
[368115998,1751028644749,-460.0,0.00019452,2]
[368115999,1751028644758,-461.14230179,0.00019452,2]
[368116000,1751028644768,-460.0,0.00019452,2]
[368116001,1751028644777,-359.53042974,0.00019452,2]
[368116002,1751028644787,-460.0,0.00019452,2]
[368116003,1751028644797,-460.0,0.00019452,2]
[368116004,1751028644806,-460.0,0.00019452,2]
[368116005,1751028644816,-460.0,0.00019452,2]
[368116006,1751028644826,-460.0,0.00019452,2]
[368116007,1751028644836,-460.0,0.00019452,2]
[368116008,1751028644846,-460.0,0.00019452,2]
[368116009,1751028644856,-460.0,0.00019452,2]
[368116010,1751028644867,-460.0,0.00019452,2]
[368116011,1751028644877,-460.0,0.00019452,2]
[368116012,1751028644886,-460.0,0.00019452,2]
[368116013,1751028644895,-460.0,0.00019452,2]
[368116014,1751028644905,-460.0,0.00019452,2]
[368116015,1751028644914,-504.94,0.00019452,2]
[368116016,1751028644923,-410.35596139,0.00019452,2]
[368116017,1751028644933,-460.0,0.00019452,2]
[368116018,1751028644942,-460.0,0.00019452,2]
[368116019,1751028644951,-460.0,0.00019452,2]
[368116020,1751028644961,-460.0,0.00019452,2]
[368116021,1751028644970,-460.0,0.00019452,2]
[368116022,1751028644980,-255.86,0.00019452,2]
[368116023,1751028644990,-992.2,0.00019452,2]
[368116024,1751028644999,-460.0,0.00019452,2]
[368116025,1751028645120,-460.0,0.00019452,2]
[368116026,1751028645130,-460.0,0.00019452,2]
[368116027,1751028645140,-468.94765437,0.00019452,2]
[368116028,1751028645149,-460.0,0.00019452,2]
[368116030,1751028645159,-463.24,0.00019452,2]
[368116031,1751028645167,-460.0,0.00019452,2]
[368116032,1751028645176,-460.0,0.00019452,2]
[368116033,1751028645185,-460.0,0.00019452,2]
[368116034,1751028645195,-460.0,0.00019452,2]
[368116035,1751028645204,-460.0,0.00019452,2]
[368116036,1751028645213,-460.0,0.00019452,2]
[368116037,1751028645229,-428.2852463,0.00019452,2]
[368116038,1751028645238,-460.0,0.00019452,2]
[368116039,1751028645247,-460.0,0.00019452,2]
[368116040,1751028645256,-460.0,0.00019452,2]
[368116041,1751028645266,-460.0,0.00019452,2]
[368116042,1751028645276,-460.0,0.00019452,2]
[368116043,1751028645287,-460.0,0.00019452,2]
[368116044,1751028645296,-460.0,0.00019452,2]
[368116045,1751028645306,-460.0,0.00019452,2]
[368116046,1751028645316,-217.10438226,0.00019452,2]
[368116047,1751028645325,-460.0,0.00019452,2]
[368116048,1751028645334,-460.0,0.00019452,2]
[368116049,1751028645344,-460.0,0.00019452,2]
[368116050,1751028645353,-460.0,0.00019452,2]
[368116051,1751028645362,-460.0,0.00019452,2]
[368116052,1751028645372,-460.0,0.00019452,2]
[368116053,1751028645381,-460.0,0.00019452,2]
[368116054,1751028645390,-302.26,0.00019452,2]
[368116055,1751028645400,-460.0,0.00019452,2]
[368116056,1751028645409,-577.9567405,0.00019452,2]
[368116057,1751028645419,-460.0,0.00019452,2]
[368116058,1751028645428,-460.0,0.00019452,2]
[368116059,1751028645437,-460.0,0.00019452,2]
[368116060,1751028645446,-460.0,0.00019452,2]
[368116061,1751028645456,-460.0,0.00019452,2]
[368116062,1751028645465,-460.0,0.00019452,2]
[368116063,1751028645474,-460.0,0.00019452,2]
[368116064,1751028645484,-462.95774099,0.00019452,2]
[368116065,1751028645493,-879.21,0.00019452,2]
[368116066,1751028645502,-460.0,0.00019452,2]
[368116067,1751028645513,-404.9738552,0.00019452,2]
[368116068,1751028645522,-460.0,0.00019452,2]
[368116069,1751028645531,-460.0,0.00019452,2]
[368116070,1751028645541,-460.0,0.00019452,2]
[368116071,1751028645550,-460.0,0.00019452,2]
[368116072,1751028645559,-460.0,0.00019452,2]
[368116073,1751028645569,-460.0,0.00019452,2]
[368116074,1751028645578,-460.0,0.00019452,2]
[368116075,1751028645588,-5369.86,0.00019452,2]
[368116076,1751028645598,-460.0,0.00019452,2]
[368116077,1751028645607,-460.0,0.00019452,2]
[368116078,1751028645616,-460.0,0.00019452,2]
[368116079,1751028645626,-442.92991043,0.00019452,2]
[368116080,1751028645634,-460.0,0.00019452,2]
[368116081,1751028645643,-460.0,0.00019452,2]
[368116082,1751028645653,-488.22,0.00019452,2]
[368116083,1751028645663,-460.0,0.00019452,2]
[368116084,1751028645672,-460.0,0.00019452,2]
[368116085,1751028645682,-464.5305246,0.00019452,2]
[368116086,1751028645691,-460.0,0.00019452,2]
[368116087,1751028645701,-460.0,0.00019452,2]
[368116088,1751028645710,-460.0,0.00019452,2]
[368116089,1751028645720,-460.0,0.00019452,2]
[368116090,1751028645730,-460.0,0.00019452,2]
[368116091,1751028645739,-460.0,0.00019452,2]
[368116092,1751028645749,-460.0,0.00019452,2]
[368116093,1751028645759,-1060.89,0.00019452,2]
[368116094,1751028645768,-460.0,0.00019452,2]
[368116095,1751028645778,-460.0,0.00019452,2]
[368116096,1751028645787,-1828.34,0.00019452,2]
[368116097,1751028645796,-460.0,0.00019452,2]
[368116098,1751028645806,-460.0,0.00019452,2]
[368116099,1751028645815,-460.0,0.00019452,2]
[368116100,1751028645827,-460.0,0.00019452,2]
[368116101,1751028645836,-460.0,0.00019452,2]
[368116102,1751028645845,-1509.31,0.00019452,2]
[368116103,1751028645855,-2896.27,0.00019452,2]
[368116104,1751028645864,-852.14,0.00019452,2]
[368116105,1751028645873,-460.0,0.00019452,2]
[368116106,1751028645882,-460.0,0.00019452,2]
[368116107,1751028645891,-460.0,0.00019452,2]
[368116108,1751028645901,-460.0,0.00019452,2]
[368116109,1751028645910,-460.0,0.00019452,2]
[368116110,1751028645919,-460.0,0.00019452,2]
[368116111,1751028645931,-460.0,0.00019452,2]
[368116112,1751028645943,-460.0,0.00019452,2]
[368116113,1751028645952,-460.0,0.00019452,2]
[368116114,1751028645962,-460.0,0.00019452,2]
[368116115,1751028645971,-774.78,0.00019452,2]
[368116116,1751028645982,-460.0,0.00019452,2]
[368116117,1751028645991,-460.0,0.00019452,2]
[368116118,1751028646000,-460.0,0.00019452,2]
[368116119,1751028646012,-6317.28,0.00019452,2]
[368116120,1751028646022,-613.9,0.00019452,2]
[368116121,1751028646032,-460.0,0.00019452,2]
[368116122,1751028646042,-1195.62,0.00019452,2]
[368116123,1751028646051,-345.08535438,0.00019452,2]
[368116124,1751028646061,-1759.24,0.00019452,2]
[368116125,1751028646069,-460.0,0.00019452,2]
[368116126,1751028646078,-970.99,0.00019452,2]
[368116127,1751028646088,-460.0,0.00019452,2]
[368116128,1751028646097,-865.46,0.00019452,2]
[368116129,1751028646107,-200.0,0.00019452,10]
[368116130,1751028646116,-2767.77,0.00019452,2]
[368116131,1751028646125,-460.0,0.00019452,2]
[368116132,1751028646134,-460.0,0.00019452,2]
[368116133,1751028646143,-1697.98,0.00019452,2]
[368116134,1751028646153,-460.0,0.00019452,2]
[368116135,1751028646162,-750.05,0.00019452,2]
[368116136,1751028646171,-460.0,0.00019452,2]
[368116137,1751028646180,-460.0,0.00019452,2]
[368116138,1751028646190,-460.0,0.00019452,2]
[368116139,1751028646199,-460.0,0.00019452,2]
[368116140,1751028646208,-460.0,0.00019452,2]
[368116141,1751028646217,-460.0,0.00019452,2]
[368116142,1751028646226,-460.0,0.00019452,2]
[368116143,1751028646235,-460.0,0.00019452,2]
[368116144,1751028646245,-460.0,0.00019452,2]
[368116145,1751028646254,-460.0,0.00019452,2]
[368116146,1751028646263,-460.0,0.00019452,2]
[368116147,1751028646273,-712.59,0.00019452,2]
[368116148,1751028646283,-1043.24,0.00019452,2]
[368116149,1751028646292,-2571.59,0.00019452,2]
[368116150,1751028646301,-628.99,0.00019452,2]
[368116151,1751028646310,-739.21,0.00019452,2]
[368116152,1751028646320,-460.0,0.00019452,2]
[368116153,1751028646329,-460.0,0.00019452,2]
[368116154,1751028646339,-460.0,0.00019452,2]
[368116155,1751028646348,-460.0,0.00019452,2]
[368116156,1751028646357,-460.0,0.00019452,2]
[368116157,1751028646366,-460.0,0.00019452,2]
[368116158,1751028646376,-460.0,0.00019452,2]
[368116159,1751028646385,-460.0,0.00019452,2]
[368116160,1751028646394,-498.61,0.00019452,2]
[368116161,1751028646404,-460.0,0.00019452,2]
[368116162,1751028646413,-460.0,0.00019452,2]
[368116163,1751028646422,-460.0,0.00019452,2]
[368116164,1751028646431,-973.52,0.00019452,2]
[368116165,1751028646440,-3738.75,0.00019452,2]
[368116166,1751028646448,-460.0,0.00019452,2]
[368116167,1751028646458,-1069.39,0.00019452,2]
[368116168,1751028646467,-460.0,0.00019452,2]
[368116169,1751028646476,-460.0,0.00019452,2]
[368116170,1751028646486,-460.0,0.00019452,2]
[368116171,1751028646495,-460.0,0.00019452,2]
[368116172,1751028646504,-460.0,0.00019452,2]
[368116173,1751028646514,-460.0,0.00019452,2]
[368116174,1751028646523,-1887.24,0.00019452,2]
[368116175,1751028646531,-460.0,0.00019452,2]
[368116176,1751028646541,-460.0,0.00019452,2]
[368116177,1751028646551,-648.01,0.00019452,2]
[368116178,1751028646560,-2241.31,0.00019452,2]
[368116179,1751028646569,-460.0,0.00019452,2]
[368116180,1751028646579,-460.0,0.00019452,2]
[368116181,1751028646588,-500.0,0.00019452,2]
[368116182,1751028646597,-460.0,0.00019452,2]
[368116183,1751028646607,-632.11,0.00019452,2]
[368116184,1751028646616,-460.0,0.00019452,2]
[368116185,1751028646626,-460.0,0.00019452,2]
[368116186,1751028646635,-195.11150249,0.00019452,2]
[368116187,1751028646644,-3812.96,0.00019452,2]
[368116188,1751028646653,-460.0,0.00019452,2]
[368116189,1751028646662,-460.0,0.00019452,2]
[368116190,1751028646672,-661.21,0.00019452,2]
[368116191,1751028646681,-3533.45,0.00019452,2]
[368116192,1751028646691,-460.0,0.00019452,2]
[368116193,1751028646700,-460.0,0.00019452,2]
[368116194,1751028646710,-460.0,0.00019452,2]
[368116195,1751028646719,-460.0,0.00019452,2]
[368116196,1751028646728,-460.0,0.00019452,2]
[368116198,1751028646737,-840.69,0.00019452,2]
[368116200,1751028646747,-460.0,0.00019452,2]
[368116201,1751028646755,-460.0,0.00019452,2]
[368116202,1751028646764,-473.51,0.00019452,2]
[368116203,1751028646774,-460.0,0.00019452,2]
[368116204,1751028646784,-1159.75,0.00019452,2]
[368116205,1751028646793,-738.77,0.00019452,2]
[368116206,1751028646802,-460.0,0.00019452,2]
[368116207,1751028646811,-460.0,0.00019452,2]
[368116208,1751028646820,-460.0,0.00019452,2]
[368116209,1751028646829,-460.0,0.00019452,2]
[368116210,1751028646839,-460.0,0.00019452,2]
[368116211,1751028646848,-566.54,0.00019452,2]
[368116212,1751028646858,-460.0,0.00019452,2]
[368116213,1751028646867,-460.0,0.00019452,2]
[368116214,1751028646876,-3071.79,0.00019452,2]
[368116215,1751028646886,-491.97,0.00019452,2]
[368116216,1751028646895,-460.0,0.00019452,2]
[368116217,1751028646904,-460.0,0.00019452,2]
[368116218,1751028646913,-460.0,0.00019452,2]
[368116219,1751028646922,-530.26968491,0.00019452,2]
[368116220,1751028646931,-263.89922912,0.00019618,2]
[368116221,1751028646942,-592.85541307,0.00019655,2]
[368116222,1751028646951,-500.0,0.00019655,2]
[368116223,1751028646961,-500.0,0.0001967,2]
[368116224,1751028646970,-500.0,0.0001967,2]
[368116225,1751028646979,-500.0,0.00019672,2]
[368116226,1751028646989,-500.0,0.00019672,2]
[368116227,1751028646998,-500.0,0.00019672,2]
[368116228,1751028647007,-500.0,0.00019677,2]
[368116229,1751028647016,-500.0,0.00019677,2]
[368116230,1751028647026,-501.27332284,0.00019677,2]
[368116231,1751028647035,-500.0,0.00019707,2]
[368116232,1751028647045,-461.45439657,0.00019726,2]
[368116233,1751028647055,-460.0,0.00019726,2]
[368116234,1751028647064,-460.0,0.00019726,2]
[368116235,1751028647073,-460.0,0.00019726,2]
[368116236,1751028647082,-460.0,0.00019726,2]
[368116237,1751028647092,-460.0,0.00019726,2]
[368116238,1751028647102,-460.0,0.00019726,2]
[368116239,1751028647111,-460.0,0.00019726,2]
[368116240,1751028647120,-460.0,0.00019726,2]
[368116241,1751028647130,-460.0,0.00019726,2]
[368116242,1751028647138,-460.0,0.00019726,2]
[368116243,1751028647147,-340.69132952,0.00019726,2]
[368116244,1751028647157,-460.0,0.00019726,2]
[368116245,1751028647166,-461.83480314,0.00019726,2]
[368116246,1751028647175,-460.0,0.00019726,2]
[368116247,1751028647184,-460.0,0.00019726,2]
[368116248,1751028647194,-460.0,0.00019726,2]
[368116249,1751028647203,-460.0,0.00019726,2]
[368116250,1751028647212,-161.84492213,0.00019726,2]
[368116251,1751028647224,-460.0,0.00019726,2]
[368116252,1751028647233,-571.45477149,0.00019726,2]
[368116253,1751028647242,-460.0,0.00019726,2]
[368116254,1751028647252,-460.0,0.00019726,2]
[368116255,1751028647261,-480.64822948,0.00019726,2]
[368116256,1751028647272,-155.79944001,0.00019726,2]
[368116257,1751028647282,-463.76,0.00019726,2]
[368116258,1751028647292,-460.0,0.00019726,2]
[368116259,1751028647303,-534.15,0.00019726,2]
[368116260,1751028647312,-460.0,0.00019726,2]
[368116261,1751028647321,-200.55,0.00019726,2]
[368116262,1751028647331,-460.0,0.00019726,2]
[368116263,1751028647340,-403.24505231,0.00019726,2]
[368116264,1751028647349,-460.0,0.00019726,2]
[368116265,1751028647359,-460.0,0.00019726,2]
[368116266,1751028647368,-460.0,0.00019726,2]
[368116267,1751028647377,-460.0,0.00019726,2]
[368116268,1751028647386,-460.0,0.00019726,2]
[368116269,1751028647395,-460.0,0.00019726,2]
[368116270,1751028647404,-460.0,0.00019726,2]
[368116271,1751028647413,-460.0,0.00019726,2]
[368116272,1751028647423,-460.0,0.00019726,2]
[368116273,1751028647432,-460.0,0.00019726,2]
[368116274,1751028647441,-171.30213755,0.00019726,2]
[368116275,1751028647450,-460.0,0.00019726,2]
[368116276,1751028647459,-581.67089768,0.00019726,2]
[368116277,1751028647468,-477.54,0.00019726,2]
[368116278,1751028647478,-460.0,0.00019726,2]
[368116279,1751028647487,-460.0,0.00019726,2]
[368116280,1751028647496,-992.2,0.00019726,2]
[368116281,1751028647506,-460.0,0.00019726,2]
[368116282,1751028647515,-464.0996202,0.00019726,2]
[368116283,1751028647524,-460.0,0.00019726,2]
[368116284,1751028647533,-460.0,0.00019726,2]
[368116285,1751028647542,-460.0,0.00019726,2]
[368116286,1751028647551,-460.0,0.00019726,2]
[368116287,1751028647560,-460.0,0.00019726,2]
[368116288,1751028647570,-460.0,0.00019726,2]
[368116289,1751028647579,-460.0,0.00019726,2]
[368116290,1751028647588,-460.0,0.00019726,2]
[368116291,1751028647706,-460.0,0.00019726,2]
[368116292,1751028647716,-460.0,0.00019726,2]
[368116293,1751028647726,-460.0,0.00019726,2]
[368116294,1751028647735,-460.0,0.00019726,2]
[368116295,1751028647744,-464.58629029,0.00019726,2]
[368116296,1751028647754,-460.0,0.00019726,2]
[368116297,1751028647763,-460.0,0.00019726,2]
[368116298,1751028647772,-460.0,0.00019726,2]
[368116299,1751028647781,-460.0,0.00019726,2]
[368116300,1751028647790,-460.0,0.00019726,2]
[368116301,1751028647799,-464.3291098,0.00019726,2]
[368116302,1751028647808,-460.0,0.00019726,2]
[368116303,1751028647817,-460.0,0.00019726,2]
[368116304,1751028647826,-460.0,0.00019726,2]
[368116305,1751028647835,-460.0,0.00019726,2]
[368116306,1751028647844,-472.42,0.00019726,2]
[368116307,1751028647853,-879.21,0.00019726,2]
[368116308,1751028647862,-460.0,0.00019726,2]
[368116309,1751028647871,-322.50935835,0.00019726,2]
[368116310,1751028647880,-460.0,0.00019726,2]
[368116311,1751028647889,-460.0,0.00019726,2]
[368116312,1751028647898,-460.0,0.00019726,2]
[368116313,1751028647908,-460.0,0.00019726,2]
[368116314,1751028647918,-5369.86,0.00019726,2]
[368116315,1751028647927,-460.0,0.00019726,2]
[368116316,1751028647936,-460.0,0.00019726,2]
[368116317,1751028647947,-488.22,0.00019726,2]
[368116318,1751028647956,-502.96695621,0.00019726,2]
[368116319,1751028647965,-460.0,0.00019726,2]
[368116320,1751028647974,-460.0,0.00019726,2]
[368116321,1751028647984,-460.0,0.00019726,2]
[368116322,1751028647993,-460.0,0.00019726,2]
[368116323,1751028648004,-460.0,0.00019726,2]
[368116324,1751028648013,-460.0,0.00019726,2]
[368116325,1751028648023,-1060.89,0.00019726,2]
[368116326,1751028648032,-1828.34,0.00019726,2]
[368116327,1751028648042,-460.0,0.00019726,2]
[368116328,1751028648051,-460.0,0.00019726,2]
[368116329,1751028648062,-462.01506123,0.00019726,2]
[368116330,1751028648071,-460.0,0.00019726,2]
[368116331,1751028648080,-460.0,0.00019726,2]
[368116332,1751028648090,-1509.31,0.00019726,2]
[368116333,1751028648100,-2896.27,0.00019726,2]
[368116334,1751028648109,-852.14,0.00019726,2]
[368116335,1751028648119,-460.0,0.00019726,2]
[368116336,1751028648128,-460.0,0.00019726,2]
[368116337,1751028648137,-460.0,0.00019726,2]
[368116338,1751028648147,-460.0,0.00019726,2]
[368116339,1751028648156,-460.0,0.00019726,2]
[368116340,1751028648166,-460.0,0.00019726,2]
[368116341,1751028648175,-774.78,0.00019726,2]
[368116342,1751028648185,-460.0,0.00019726,2]
[368116343,1751028648194,-460.0,0.00019726,2]
[368116344,1751028648203,-529.89902784,0.00019726,2]
[368116345,1751028648212,-6317.28,0.00019726,2]
[368116346,1751028648222,-460.0,0.00019726,2]
[368116347,1751028648231,-1195.62,0.00019726,2]
[368116348,1751028648241,-613.9,0.00019726,2]
[368116349,1751028648250,-1759.24,0.00019726,2]
[368116350,1751028648259,-460.0,0.00019726,2]
[368116351,1751028648268,-970.99,0.00019726,2]
[368116352,1751028648278,-865.46,0.00019726,2]
[368116353,1751028648288,-2767.77,0.00019726,2]
[368116354,1751028648297,-526.1,0.00019726,2]
[368116355,1751028648306,-460.0,0.00019726,2]
[368116356,1751028648315,-1697.98,0.00019726,2]
[368116357,1751028648325,-460.0,0.00019726,2]
[368116358,1751028648334,-750.05,0.00019726,2]
[368116359,1751028648344,-460.0,0.00019726,2]
[368116360,1751028648353,-460.0,0.00019726,2]
[368116361,1751028648362,-460.0,0.00019726,2]
[368116362,1751028648372,-460.0,0.00019726,2]
[368116363,1751028648381,-498.71,0.00019726,2]
[368116364,1751028648390,-460.0,0.00019726,2]
[368116365,1751028648399,-460.0,0.00019726,2]
[368116366,1751028648409,-460.0,0.00019726,2]
[368116367,1751028648418,-460.0,0.00019726,2]
[368116368,1751028648427,-460.0,0.00019726,2]
[368116369,1751028648436,-460.0,0.00019726,2]
[368116370,1751028648445,-712.59,0.00019726,2]
[368116371,1751028648455,-1043.24,0.00019726,2]
[368116372,1751028648464,-2571.59,0.00019726,2]
[368116373,1751028648473,-628.99,0.00019726,2]
[368116374,1751028648483,-739.21,0.00019726,2]
[368116375,1751028648492,-460.0,0.00019726,2]
[368116376,1751028648502,-460.0,0.00019726,2]
[368116377,1751028648511,-460.0,0.00019726,2]
[368116378,1751028648520,-460.0,0.00019726,2]
[368116379,1751028648530,-460.0,0.00019726,2]
[368116380,1751028648541,-460.0,0.00019726,2]
[368116381,1751028648551,-460.0,0.00019726,2]
[368116382,1751028648561,-460.0,0.00019726,2]
[368116383,1751028648570,-973.52,0.00019726,2]
[368116384,1751028648580,-3738.75,0.00019726,2]
[368116385,1751028648590,-460.0,0.00019726,2]
[368116386,1751028648599,-1069.39,0.00019726,2]
[368116387,1751028648608,-460.0,0.00019726,2]
[368116388,1751028648618,-460.0,0.00019726,2]
[368116389,1751028648627,-477.24165034,0.00019726,2]
[368116390,1751028648637,-460.0,0.00019726,2]
[368116391,1751028648646,-460.0,0.00019726,2]
[368116392,1751028648655,-400.34292741,0.00019726,2]
[368116393,1751028648665,-1887.24,0.00019726,2]
[368116394,1751028648675,-460.0,0.00019726,2]
[368116395,1751028648684,-2241.31,0.00019726,2]
[368116396,1751028648694,-460.0,0.00019726,2]
[368116397,1751028648703,-648.01,0.00019726,2]
[368116398,1751028648712,-460.0,0.00019726,2]
[368116399,1751028648722,-500.0,0.00019726,2]
[368116400,1751028648731,-632.11,0.00019726,2]
[368116401,1751028648741,-3812.96,0.00019726,2]
[368116402,1751028648750,-460.0,0.00019726,2]
[368116403,1751028648759,-460.0,0.00019726,2]
[368116404,1751028648769,-661.21,0.00019726,2]
[368116405,1751028648778,-3533.45,0.00019726,2]
[368116406,1751028648788,-460.0,0.00019726,2]
[368116407,1751028648798,-501.69657566,0.00019726,2]
[368116408,1751028648807,-460.0,0.00019726,2]
[368116409,1751028648817,-840.69,0.00019726,2]
[368116410,1751028648826,-460.0,0.00019726,2]
[368116411,1751028648835,-460.0,0.00019726,2]
[368116412,1751028648844,-460.0,0.00019726,2]
[368116413,1751028648853,-1159.75,0.00019726,2]
[368116414,1751028648862,-738.77,0.00019726,2]
[368116415,1751028648871,-460.0,0.00019726,2]
[368116416,1751028648881,-159.84,0.00019726,2]
[368116417,1751028648891,-460.0,0.00019726,2]
[368116418,1751028648900,-460.0,0.00019726,2]
[368116419,1751028648910,-566.54,0.00019726,2]
[368116420,1751028648919,-460.0,0.00019726,2]
[368116421,1751028648928,-406.77585399,0.00019726,2]
[368116422,1751028648937,-3071.79,0.00019726,2]
[368116423,1751028648947,-491.97,0.00019726,2]
[368116424,1751028648957,-460.0,0.00019726,2]
[368116425,1751028648967,-460.0,0.00019726,2]
[368116426,1751028648977,-2833.29029069,0.00019742,2]
[368116427,1751028648987,-631.0,0.00019778,2]
[368116428,1751028648996,-631.0,0.00019845,2]
[368116429,1751028649005,-10118.81432857,0.000199,2]
[368116430,1751028649014,-5888.0,0.00019916,2]
[368116431,1751028649024,-160.0,0.00019965,2]
[368116432,1751028649034,-230.26210603,0.00019965,2]
[368116433,1751028649043,-160.0,0.00019965,2]
[368116434,1751028649053,-213.75309343,0.00019965,2]
[368116435,1751028649063,-160.0,0.00019965,2]
[368116436,1751028649072,-847.04181546,0.00019965,2]
[368116437,1751028649082,-214.91804724,0.00019965,2]
[368116438,1751028649091,-836.98798914,0.00019965,2]
[368116439,1751028649101,-12562.41216491,0.00019965,2]
[368116440,1751028649110,-160.0,0.00019965,2]
[368116441,1751028649119,-160.0,0.00019965,2]
[368116442,1751028649129,-5888.0,0.00019966,2]
[368116443,1751028649139,-500.0,0.00019973,2]
[368116444,1751028649149,-100000.0,0.0001999,2]
[368116445,1751028649158,-460.0,0.0002,2]
[368116446,1751028649168,-460.0,0.0002,2]
[368116447,1751028649178,-270.0,0.0002,2]
[368116448,1751028649187,-460.0,0.0002,2]
[368116449,1751028649197,-460.0,0.0002,2]
[368116450,1751028649206,-460.0,0.0002,2]
[368116451,1751028649216,-460.0,0.0002,2]
[368116452,1751028649230,-460.0,0.0002,2]
[368116453,1751028649240,-460.0,0.0002,2]
[368116454,1751028649250,-221.68,0.0002,2]
[368116455,1751028649259,-463.76,0.0002,2]
[368116456,1751028649271,-460.0,0.0002,2]
[368116457,1751028649280,-460.0,0.0002,2]
[368116458,1751028649290,-328.16851035,0.0002,2]
[368116459,1751028649301,-460.0,0.0002,2]
[368116460,1751028649310,-183.40520964,0.0002,2]
[368116461,1751028649319,-460.0,0.0002,2]
[368116462,1751028649330,-460.0,0.0002,2]
[368116463,1751028649340,-460.0,0.0002,2]
[368116464,1751028649349,-460.0,0.0002,2]
[368116465,1751028649359,-460.0,0.0002,2]
[368116466,1751028649368,-460.0,0.0002,2]
[368116467,1751028649378,-460.0,0.0002,2]
[368116468,1751028649387,-460.0,0.0002,2]
[368116469,1751028649396,-460.0,0.0002,2]
[368116470,1751028649405,-460.0,0.0002,2]
[368116471,1751028649414,-992.2,0.0002,2]
[368116472,1751028649424,-460.0,0.0002,2]
[368116473,1751028649434,-460.0,0.0002,2]
[368116474,1751028649443,-460.0,0.0002,2]
[368116475,1751028649452,-460.0,0.0002,2]
[368116476,1751028649462,-460.0,0.0002,2]
[368116477,1751028649471,-460.0,0.0002,2]
[368116478,1751028649480,-460.0,0.0002,2]